bitfinex/quotes_ETHUSD_20220106
["timestamp","ask_amount","ask_price","bid_price","bid_amount"]
[1641461657293,2.09019957,3352.1,3352.0,0.00427369]
[1641461657493,0.65770527,3352.5,3352.0,0.00427369]
[1641461657692,0.65770527,3352.5,3352.0,0.00541054]
[1641461657897,0.00113684,3352.4,3352.0,0.00541054]
[1641461658294,0.00113684,3352.4,3349.1,1.99858439]
[1641461658295,38.36605439,3350.0,3349.1,1.99858439]
[1641461658499,38.36605439,3350.0,3347.7,3.63048041]
[1641461658500,4.25,3349.4,3347.7,3.63048041]
[1641461658694,0.31287221,3349.2,3347.4,0.0135907]
[1641461658894,0.01221358,3348.4,3347.4,0.0135907]
[1641461659194,0.01221358,3348.4,3347.5,0.02557906]
[1641461659439,4.444,3347.9,3347.5,0.02557906]
[1641461659643,0.71889302,3347.2,3347.0,12.5107712]
[1641461659840,0.71889302,3347.2,3346.6,0.104952]
[1641461659841,8.65,3347.0,3346.6,0.104952]
[1641461660041,4.444,3346.7,3346.6,5.2e-05]
[1641461660241,4.444,3346.7,3346.0,0.4]
[1641461660242,4.8,3346.7,3346.0,0.4]
[1641461660445,0.356,3346.7,3346.5,1.55706269]
[1641461660642,0.3997,3346.3,3345.5,17.53802813]
[1641461660841,0.3997,3346.3,3345.0,5.4804]
[1641461660842,0.8858,3345.7,3345.0,5.4804]
[1641461661048,0.012742,3345.1,3345.0,4.8574959]
[1641461661345,1.254542,3345.1,3345.0,4.86659067]
[1641461661544,1.554542,3345.1,3345.0,6.98806766]
[1641461661744,14.5358,3344.8,3343.0,13.66107504]
[1641461661951,0.6858,3344.6,3343.0,9.41107504]
[1641461662152,4.85914195,3345.0,3343.0,8.07587509]
[1641461662153,0.6858,3344.4,3343.0,8.07587509]
[1641461662344,0.01245516,3344.1,3343.0,8.07587509]
[1641461662546,0.6858,3343.7,3343.0,8.07587509]
[1641461662744,0.6858,3343.5,3343.2,1.67362709]
[1641461662945,5.1298,3343.3,3342.7,9.019e-05]
[1641461663196,0.75698739,3343.0,3342.7,9.019e-05]
[1641461663395,0.69870186,3342.8,3342.6,5.035e-05]
[1641461663606,0.69870186,3342.8,3337.5,4.65064272]
[1641461663607,4.8,3342.7,3337.5,4.65064272]
[1641461663801,4.8,3342.7,3339.2,1.92470014]
[1641461663802,18.152171,3339.3,3339.2,1.92470014]
[1641461664010,0.356,3340.0,3339.3,6.6642]
[1641461664202,0.356,3340.0,3339.2,0.0054]
[1641461664400,10.925795,3339.9,3339.4,0.0193264]
[1641461664702,10.925795,3339.9,3339.3,9.482e-05]
[1641461664703,2.0,3339.5,3339.3,9.482e-05]
[1641461665002,2.0,3339.5,3337.8,0.00278973]
[1641461665003,40.136065,3339.3,3337.0,6.18619016]
[1641461665201,3.95,3339.3,3337.0,6.18619016]
[1641461665402,36.186065,3337.7,3337.0,6.19833542]
[1641461665600,0.01799547,3338.6,3337.1,0.01250532]
[1641461665802,0.01295472,3337.7,3337.1,0.01250532]
[1641461666004,3.12771118,3337.6,3336.0,6.91229966]
[1641461666206,0.01289189,3337.1,3336.0,6.91229966]
[1641461666403,0.01289189,3337.1,3333.0,32.96776497]
[1641461666603,0.01289189,3337.1,3333.2,2.9]
[1641461666604,8.90974447,3335.9,3333.2,2.9]
[1641461666807,8.90974447,3335.9,3333.1,7.1116664]
[1641461666808,0.0122801,3336.0,3333.5,0.01211762]
[1641461667049,0.01280117,3337.0,3336.6,1.80968971]
[1641461667248,0.0022737,3337.5,3336.6,1.80968971]
[1641461667548,2.2614196,3339.4,3336.7,1.09263723]
[1641461667549,0.10352145,3338.3,3336.7,1.09263723]
[1641461667754,0.35602145,3338.3,3336.6,1.80968971]
[1641461668050,3.24291118,3338.2,3336.6,1.80968971]
[1641461668251,0.1288,3338.2,3337.0,0.01283381]
[1641461668454,0.00341054,3338.1,3337.0,0.01283381]
[1641461668653,0.00341054,3338.1,3336.7,0.00227369]
[1641461668853,1.054e-05,3338.1,3336.7,0.00227369]
[1641461669050,0.0123796,3339.4,3336.7,0.00227369]
[1641461669051,0.24074087,3338.6,3337.2,0.01260312]
[1641461669253,0.0123796,3339.4,3337.2,2.61352364]
[1641461669453,0.0123796,3339.4,3337.7,0.2028]
[1641461669651,2.108e-05,3339.3,3339.2,1.01597501]
[1641461669854,2.108e-05,3339.3,3338.6,1.2998]
[1641461670051,2.108e-05,3339.3,3338.6,0.9438]
[1641461670052,1.74402505,3339.3,3338.6,0.9438]
[1641461670253,0.116,3341.3,3338.6,0.9438]
[1641461670254,0.01234807,3340.5,3338.7,1.71713517]
[1641461670453,1.478,3342.9,3338.7,1.71715625]
[1641461670454,3.24371118,3341.3,3338.7,1.71715625]
[1641461670698,0.00341054,3339.9,3338.9,0.01210293]
[1641461670898,1.054e-05,3339.9,3339.0,0.356]
[1641461671099,0.01239172,3341.6,3339.1,3.12771118]
[1641461671307,0.01239172,3341.6,3339.1,3.13504803]
[1641461671504,0.01239172,3341.6,3339.3,1.6280722]
[1641461671505,0.0062632,3341.5,3339.3,1.6280722]
[1641461671703,0.0062632,3341.5,3339.9,0.1797]
[1641461671901,0.00569477,3341.4,3341.0,1.24396815]
[1641461672300,0.01218173,3341.1,3340.0,0.00226316]
[1641461672502,0.00512635,3341.3,3340.0,0.00226316]
[1641461672701,0.01217511,3341.6,3340.0,0.00226316]
[1641461672903,0.01217511,3341.6,3340.0,0.00568424]
[1641461672904,0.00113685,3341.2,3340.0,0.00568424]
[1641461673103,0.01288384,3340.5,3340.0,0.00568424]
[1641461673305,0.00113685,3341.2,3339.3,0.0096632]
[1641461673306,0.01242761,3340.9,3339.3,0.0096632]
[1641461673702,0.083615,3340.9,3339.3,0.0096632]
[1641461673902,0.083615,3340.9,3340.5,1.83428672]
[1641461674106,0.439615,3340.9,3339.3,0.0096632]
[1641461674304,0.439615,3340.9,3340.6,0.00227369]
[1641461674541,0.36842761,3340.9,3339.8,1.35061895]
[1641461674747,0.36842761,3340.9,3339.2,0.0037123]
[1641461674748,3.52212631,3340.8,3339.9,0.00625266]
[1641461674944,8.56009012,3340.0,3339.2,0.0037123]
[1641461675146,3.62730339,3339.9,3339.2,0.0037123]
[1641461675349,0.3,3339.8,3339.3,0.00341054]
[1641461675549,0.4408,3339.8,3339.3,0.00341054]
[1641461675744,0.20938736,3339.9,3339.3,1.054e-05]
[1641461675745,0.4912,3339.7,3339.3,1.054e-05]
[1641461675946,0.356,3339.6,3339.3,1.054e-05]
[1641461676146,0.50249473,3339.6,3339.3,1.054e-05]
[1641461676347,0.01255667,3339.4,3339.3,1.054e-05]
[1641461676554,0.01205387,3340.7,3339.3,1.054e-05]
[1641461676753,0.01205387,3340.7,3339.3,0.00113685]
[1641461676754,0.356,3340.6,3339.3,0.00113685]
[1641461676947,5.169,3340.8,3340.1,1.27604315]
[1641461677149,0.01227641,3340.5,3339.4,0.01262975]
[1641461677350,0.01227641,3340.5,3339.2,0.13819997]
[1641461677548,0.01227641,3340.5,3338.7,0.356]
[1641461677750,2.29997634,3340.1,3338.2,0.01248026]
[1641461677949,2.29997634,3340.1,3338.8,0.00284212]
[1641461678187,0.00397896,3340.0,3338.8,0.00284212]
[1641461678394,0.01263206,3339.8,3338.8,0.00284212]
[1641461678592,2.29997634,3339.0,3338.8,0.00284212]
[1641461678792,2.31241671,3339.0,3338.8,0.00284212]
[1641461678992,0.01244037,3339.0,3337.5,0.01023162]
[1641461679295,0.00227369,3339.7,3337.8,0.0124916]
[1641461679494,0.00227369,3339.7,3337.8,0.356]
[1641461679495,1.71651437,3339.5,3337.8,0.356]
[1641461679693,1.71651437,3339.5,3339.3,1.28874758]
[1641461679892,1.71651437,3339.5,3339.4,2.19707852]
[1641461680092,1.71651437,3339.5,3337.9,0.00795793]
[1641461680298,0.01272964,3338.5,3337.9,0.00795793]
[1641461680695,2.29997634,3338.4,3337.7,0.00909478]
[1641461681195,2.29997634,3338.4,3338.3,1.89453408]
[1641461681395,2.29997634,3338.4,3337.7,1.37403049]
[1641461681593,0.01272964,3338.5,3338.3,0.00568423]
[1641461681799,0.01272964,3338.5,3337.8,0.00852635]
[1641461682068,3.38386458,3338.3,3336.3,0.0170527]
[1641461682668,2.29997634,3337.7,3336.9,1.13401792]
[1641461683071,2.29997634,3337.7,3337.0,0.01307374]
[1641461683269,3.49748489,3338.3,3337.0,0.01307374]
[1641461683469,2.29997634,3337.2,3337.0,0.01307374]
[1641461683671,2.29997634,3337.2,3336.3,0.0170527]
[1641461683870,2.29997634,3336.7,3336.3,5.27e-05]
[1641461684071,2.59997634,3336.7,3336.3,5.27e-05]
[1641461684271,2.59997634,3336.7,3335.3,0.00573694]
[1641461684272,0.00165257,3336.6,3335.3,0.00573694]
[1641461684474,0.00165257,3336.6,3334.2,1.26690149]
[1641461684475,2.29997634,3335.8,3334.3,0.01142117]
[1641461684874,0.356,3335.8,3334.3,0.01142117]
[1641461685072,2.29997634,3334.9,3334.1,2.16964603]
[1641461685274,2.29997634,3335.3,3334.1,2.16964603]
[1641461685474,2.29997634,3335.6,3334.5,1.33962219]
[1641461685694,2.29997634,3335.6,3334.2,0.0119896]
[1641461685898,2.29997634,3334.7,3334.6,0.0097159]
[1641461686095,2.29997634,3334.7,3334.2,0.0119896]
[1641461686300,0.8336,3334.9,3334.2,0.0119896]
[1641461686500,2.29997634,3335.0,3334.2,0.0119896]
[1641461686800,2.29997634,3334.8,3333.9,1.00486369]
[1641461687105,2.29997634,3335.5,3334.0,0.01312644]
[1641461706651,2.29997634,3335.5,3334.2,7.64734514]
[1641461942542,2.29997634,3335.5,3335.3,0.01242826]
[1641461942745,2.29997634,3335.5,3335.0,2.94522612]
[1641461943683,2.29997634,3335.5,3335.0,0.00273239]
[1641461944282,2.29997634,3335.5,3335.0,0.00273239]
[1641461944478,2.29997634,3335.5,3334.5,4.00221569]
[1641461944679,0.8858,3335.2,3334.5,6.22006708]
[1641461944879,1.2418,3335.1,3334.5,6.22006708]
[1641461945079,0.8858,3334.9,3334.5,2.21785139]
[1641461945581,0.8858,3334.7,3334.3,1.44317373]
[1641461945785,0.8858,3334.5,3334.3,1.44317373]
[1641461945979,1.99198,3334.5,3334.4,0.00682108]
[1641461946180,1.94198,3334.5,3334.4,0.00682108]
[1641461946679,0.1216,3335.4,3334.4,0.00682108]
[1641461946680,0.8693202,3335.4,3334.4,0.00682108]
[1641461946879,0.8693202,3335.4,3334.9,1.19121058]
[1641461946880,0.356,3335.3,3334.9,1.19121058]
[1641461947319,0.356,3335.3,3335.0,0.00341054]
[1641461947720,1.50014,3335.1,3335.0,0.00341054]
[1641461947920,1.85614,3335.1,3333.6,0.28879997]
[1641461948126,7.10611276,3335.1,3334.4,0.00341054]
[1641461948325,17.54438739,3335.0,3334.4,0.00341054]
[1641461948521,17.33,3334.7,3333.6,0.1506]
[1641461948722,17.686,3334.6,3333.7,0.00397896]
[1641461949020,2.0,3333.8,3333.6,0.10457896]
[1641461949220,0.356,3333.7,3333.6,0.10457896]
[1641461949823,1.199,3333.7,3333.6,0.10457896]
[1641461950023,1.94941,3333.7,3333.6,0.10457896]
[1641461950233,2.07181,3333.7,3333.6,0.10457896]
[1641461950425,1.94941,3333.7,3332.4,2.03436093]
[1641461950625,3.07981,3333.7,3332.4,2.03436093]
[1641461950826,3.07981,3333.7,3332.5,1.32425626]
[1641461950827,0.1304,3333.6,3332.5,1.32425626]
[1641461951103,2.750604,3333.4,3332.5,1.60100842]
[1641461951288,1.119304,3333.3,3332.5,1.60100842]
[1641461951490,2.24225139,3333.3,3332.3,1.44317373]
[1641461951693,2.24225139,3333.3,3332.1,0.6]
[1641461951694,0.19036636,3333.2,3332.1,0.6]
[1641461951889,0.19036636,3333.2,3331.7,3.05154139]
[1641461951890,0.01264258,3332.6,3331.7,3.05154139]
[1641461952091,0.356,3332.5,3331.7,2.90154139]
[1641461952290,0.54210527,3332.5,3331.8,0.00227369]
[1641461952488,0.00113685,3332.4,3331.7,2.90154139]
[1641461952688,0.356,3332.3,3331.7,2.90154139]
[1641461952891,0.35884212,3332.3,3331.7,2.90154139]
[1641461953099,12.3,3332.1,3331.5,1.44317373]
[1641461953290,0.356,3332.0,3331.5,1.44317373]
[1641461953493,13.5,3331.9,3330.0,0.84]
[1641461953692,0.8858,3331.1,3330.5,4.07109046]
[1641461953889,0.8858,3331.1,3330.5,4.07734311]
[1641461953890,0.01247506,3330.8,3330.5,4.07734311]
[1641461954089,0.8858,3330.6,3330.0,0.87886307]
[1641461954290,0.8858,3330.4,3330.0,0.87886307]
[1641461954490,0.8858,3330.2,3330.0,0.66122897]
[1641461954737,0.356,3330.3,3329.0,8.45488843]
[1641461954738,0.8858,3329.8,3329.0,8.45488843]
[1641461954936,1.98520766,3329.9,3329.0,5.39988843]
[1641461954937,0.8858,3329.6,3329.0,5.39988843]
[1641461955125,0.8858,3329.4,3329.0,4.01357266]
[1641461955325,0.356,3329.5,3329.0,4.01357266]
[1641461955326,0.8858,3329.2,3329.0,4.01357266]
[1641461955525,0.8858,3329.0,3328.9,3.274e-05]
[1641461955730,0.8858,3329.0,3328.0,0.05160092]
[1641461955731,0.8858,3328.8,3328.0,0.05160092]
[1641461956028,1.7176333,3326.9,3326.1,0.01590366]
[1641461956238,1.7176333,3326.9,3325.6,4.57914933]
[1641461956239,1.7176333,3326.9,3326.0,5.66392438]
[1641461956528,1.7176333,3326.9,3325.7,0.017]
[1641461956529,1.2418,3326.8,3326.7,0.01364217]
[1641461956729,1.2418,3326.8,3325.4,11.46373582]
[1641461956931,5.3298,3326.6,3325.4,10.23943582]
[1641461957128,0.8858,3326.1,3325.4,10.1939832]
[1641461957329,0.01270822,3325.5,3325.1,1.62001587]
[1641461957527,0.01263667,3325.2,3325.1,1.62001587]
[1641461957727,0.01296795,3325.6,3325.1,0.5847701]
[1641461957927,6.70126,3326.2,3325.2,11.50084652]
[1641461957928,0.356,3326.1,3325.2,11.50084652]
[1641461958127,0.356,3326.1,3325.2,11.38482549]
[1641461958128,0.01252044,3325.9,3325.2,11.38482549]
[1641461958327,0.356,3325.8,3325.2,10.07025363]
[1641461958534,0.356,3325.8,3325.3,2.22125857]
[1641461958831,0.356,3325.8,3325.4,0.00284212]
[1641461958832,1.28067028,3325.6,3325.4,0.00284212]
[1641461959132,1.28067028,3325.6,3325.3,2.16410069]
[1641461959433,0.356,3325.5,3325.0,78.05454545]
[1641461959842,1.50567684,3326.1,3325.0,78.05454545]
[1641461959843,0.35713684,3326.1,3325.1,0.00170527]
[1641461960031,0.35713684,3326.1,3325.0,78.05454545]
[1641461960032,0.00113684,3326.1,3325.0,78.0179634]
[1641461960232,0.356,3326.5,3325.0,78.0179634]
[1641461960233,0.55591581,3326.5,3325.0,78.0179634]
[1641461960442,0.1152,3326.8,3325.1,16.82042006]
[1641461960632,6.444,3329.0,3325.1,16.82042006]
[1641461960633,5.48601611,3327.1,3325.5,0.01296723]
[1641461960835,0.00170527,3326.7,3326.5,1.18188217]
[1641461961033,5.27e-06,3326.7,3326.5,1.18188217]
[1641461961234,0.01245687,3327.9,3326.5,1.18188217]
[1641461961235,0.01245687,3327.9,3326.6,0.3]
[1641461961433,3.88090876,3328.3,3326.7,1.68171236]
[1641461961634,8.36067014,3329.3,3326.7,1.68171236]
[1641461961635,0.1152,3329.2,3326.8,16.06866883]
[1641461961834,4.13481573,3328.9,3328.7,1.3758687]
[1641461962035,1.573e-05,3328.9,3328.7,1.3758687]
[1641461962232,5.51308763,3329.4,3328.7,1.3758687]
[1641461962233,0.01080005,3329.2,3328.7,1.3758687]
[1641461962434,0.01080005,3329.2,3328.8,1.74023477]
[1641461962633,0.01023163,3329.1,3328.8,1.74023477]
[1641461962834,3.163e-05,3329.1,3328.8,1.74023477]
[1641461963033,6.85752014,3329.9,3328.9,0.00110522]
[1641461963034,6.32e-05,3329.0,3328.9,0.00110522]
[1641461963233,6.32e-05,3329.0,3328.9,12.15110522]
[1641461963433,6.32e-05,3329.0,3328.9,12.16070522]
[1641461963635,6.32e-05,3329.0,3328.9,12.46070522]
[1641461963939,0.01245743,3329.0,3326.9,17.33]
[1641461964133,0.01245743,3329.0,3327.2,3.0]
[1641461964336,3.3218824,3330.4,3328.3,0.0314256]
[1641461964534,0.01227905,3329.3,3328.6,0.1544]
[1641461964736,2.55446886,3331.6,3328.6,0.1544]
[1641461964737,0.00391576,3329.6,3329.0,0.75094]
[1641461964937,0.00391576,3329.6,3329.1,1.33745616]
[1641461965137,0.00334734,3329.5,3329.2,2.23655754]
[1641461965334,0.1248,3332.1,3329.3,13.5]
[1641461965535,3.3510849,3331.0,3329.4,3.08646886]
[1641461965735,3.3510849,3331.0,3330.9,1.41795424]
[1641461965982,3.3510849,3331.0,3330.9,0.9458]
[1641461966184,3.35961125,3331.0,3330.9,0.9458]
[1641461966484,0.00852635,3331.0,3330.9,2.724279]
[1641461967092,0.00852635,3331.0,3329.5,0.13819997]
[1641461967387,0.01288395,3330.2,3329.5,0.13819997]
[1641461967586,0.01288395,3330.2,3329.3,0.00113685]
[1641461967782,0.89822386,3329.4,3329.3,0.00113685]
[1641461967983,0.8858,3329.4,3329.3,1.87963614]
[1641461968183,0.8858,3329.4,3329.3,3.20846598]
[1641461968388,0.8858,3329.4,3329.3,1.88077299]
[1641461968684,0.8858,3329.4,3328.2,0.13819997]
[1641461968685,0.8858,3329.2,3328.2,0.13819997]
[1641461968885,1.2418,3329.2,3328.2,0.13819997]
[1641461969086,0.07118739,3329.1,3328.3,0.00568423]
[1641461969296,1.3562,3329.2,3328.3,0.00568423]
[1641461969297,1.2418,3329.2,3328.3,0.00568423]
[1641461969484,1.2418,3329.2,3328.3,3.16818782]
[1641461969734,0.8858,3328.8,3328.3,0.00568423]
[1641461969929,0.8858,3328.8,3327.1,2.46484148]
[1641461969930,0.8858,3328.8,3328.4,0.00511581]
[1641461970133,0.8858,3328.8,3327.4,0.13819997]
[1641461970134,0.8858,3328.8,3327.5,0.7513]
[1641461970335,0.8858,3328.8,3327.6,2.46484148]
[1641461970530,0.8858,3328.8,3327.6,0.00966319]
[1641461970730,0.8858,3328.8,3327.7,1.03771479]
[1641461970930,4.23678141,3328.8,3328.7,1.23520952]
[1641461971331,0.8858,3328.8,3328.7,1.23862006]
[1641461971530,1.67337468,3329.0,3328.1,13.5]
[1641461971733,1.67337468,3329.0,3328.1,0.75115]
[1641461971931,3.35098141,3329.5,3328.3,13.5]
[1641461972132,4.1882523,3330.0,3329.1,1.10198995]
[1641461972331,0.00284212,3329.4,3329.1,1.92148995]
[1641461972535,4.51816212,3331.2,3329.3,9.95]
[1641461972731,4.51816212,3331.2,3329.3,5.70076]
[1641461972930,4.51816212,3331.2,3329.8,14.62936636]
[1641461973130,4.51816212,3331.2,3330.9,3.15873767]
[1641461973333,5.60904385,3331.7,3330.9,3.15873767]
[1641461973597,6.98142687,3332.2,3331.2,0.75046]
[1641461973796,0.15566814,3334.1,3331.0,15.30086]
[1641461973797,1.81144699,3334.3,3331.4,13.5]
[1641461973994,7.03805411,3334.8,3333.8,0.622]
[1641461974197,56.37427815,3335.4,3334.6,0.01249434]
[1641461974198,6.13240576,3335.3,3334.6,0.01249434]
[1641461974402,6.13240576,3335.3,3335.1,1.15201616]
[1641461974403,5.12870576,3335.3,3335.1,1.15201616]
[1641461974594,0.01875798,3334.9,3334.5,0.2445]
[1641461974791,54.37427815,3335.4,3335.3,1.120513]
[1641461974993,54.37427815,3335.4,3335.3,14.549513]
[1641461974994,23.4162321,3335.4,3335.3,14.549513]
[1641461975194,0.10792615,3335.4,3335.3,2.049513]
[1641461975598,9.84711303,3336.0,3335.9,1.39139808]
[1641461975792,9.84711303,3336.0,3335.9,1.74739808]
[1641461975992,2.08798138,3337.3,3335.9,1.74739808]
[1641461975993,2.22618135,3337.3,3335.9,1.74739808]
[1641461976192,2.22618135,3337.3,3335.9,0.356]
[1641461976193,0.13819997,3337.3,3335.9,0.356]
[1641461976392,0.00852635,3336.4,3335.9,0.356]
[1641461976792,0.00795793,3336.3,3335.9,0.356]
[1641461977097,0.0073895,3336.2,3335.9,0.356]
[1641461977352,0.0073895,3336.2,3335.3,6.601e-05]
[1641461977653,1.69846878,3336.3,3335.3,6.601e-05]
[1641461977654,0.01254959,3336.0,3335.3,6.601e-05]
[1641461978048,2.63766154,3335.9,3335.3,6.601e-05]
[1641461978248,2.63766154,3335.9,3335.4,0.00284211]
[1641461978551,2.56647415,3335.9,3335.4,0.00284211]
[1641461979651,2.56647415,3335.9,3334.4,0.13819997]
[1641461979652,2.56647415,3335.9,3335.1,0.00454739]
[1641461979849,1.79865507,3335.8,3334.5,0.00795793]
[1641461980251,1.79865507,3335.8,3334.5,0.36395793]
[1641461980451,1.79865507,3335.8,3335.5,1.27523341]
[1641461980653,1.79865507,3335.8,3335.5,1.17523341]
[1641461980850,1.79865507,3335.8,3335.6,0.00170527]
[1641461981092,2.56647415,3336.6,3335.7,4.3]
[1641461981397,2.56647415,3336.6,3336.4,1.11567123]
[1641461981590,2.56647415,3336.6,3336.4,1.70937123]
[1641461981791,2.56647415,3336.6,3336.5,1.9972653]
[1641461981990,2.23e-06,3336.8,3336.6,1.82862585]
[1641461982194,4.26075279,3337.3,3336.7,0.356]
[1641461982392,5.68100372,3337.8,3336.7,0.36872547]
[1641461982393,3.42556873,3337.7,3336.7,0.36872547]
[1641461983598,4.26075279,3338.2,3337.8,1.33635967]
[1641461983795,4.26075279,3338.8,3337.8,1.33635967]
[1641461983994,4.26075279,3338.8,3338.0,2.1046317]
[1641461983995,0.01250532,3338.1,3338.0,2.1046317]
[1641461984302,0.01250532,3338.1,3338.0,2.4046317]
[1641461984740,0.01250532,3338.1,3338.0,2.7606317]
[1641461984933,0.01221983,3340.7,3338.0,2.7606317]
[1641461984934,4.26075279,3339.5,3338.1,12.05]
[1641461985138,0.52042661,3341.0,3339.9,10.25]
[1641461985337,0.52042661,3341.0,3340.7,0.78149999]
[1641461985539,0.01260033,3343.3,3340.9,4.0]
[1641461985736,0.01260033,3343.3,3340.7,1.65119999]
[1641461985737,0.13819997,3343.0,3340.7,1.65119999]
[1641461985933,0.01875797,3341.4,3340.9,0.01282253]
[1641461986134,7.066571,3342.5,3340.9,0.01237626]
[1641461986334,7.066571,3342.5,3341.0,0.00227369]
[1641461986634,0.13819997,3343.0,3341.0,0.00227369]
[1641461986635,0.00568424,3342.4,3341.0,0.00227369]
[1641461987034,0.13819997,3343.0,3341.0,0.00227369]
[1641461987035,0.00511581,3342.3,3341.0,0.00227369]
[1641461987440,0.13819997,3343.0,3341.7,1.95130586]
[1641461987634,0.13819997,3343.0,3341.7,2.75450586]
[1641461987837,0.00341054,3342.9,3341.9,1.09806178]
[1641461988036,0.01211249,3343.4,3341.9,1.09806178]
[1641461988234,5.169,3345.0,3343.2,1.17404607]
[1641461988235,0.01226157,3344.1,3343.2,1.17404607]
[1641461988477,0.0022737,3343.3,3343.2,0.5873]
[1641461988876,0.01219931,3344.8,3343.2,0.5873]
[1641461989277,0.01023163,3344.7,3343.3,1.26020896]
[1641461989578,0.0096632,3344.6,3343.2,0.5873]
[1641461989776,0.0096632,3344.6,3344.2,1.86768597]
[1641461989983,0.12271326,3345.3,3344.2,2.68008597]
[1641461989984,0.00909478,3344.5,3344.2,2.68008597]
[1641461990380,3.23642458,3346.4,3344.2,2.68008597]
[1641461990381,2.85165464,3346.4,3344.2,2.68008597]
[1641461990580,7.23908192,3345.6,3345.2,0.5569]
[1641461990779,7.23908192,3345.6,3345.2,1.183]
[1641461990978,7.23908192,3345.6,3345.3,2.19147031]
[1641461991379,1.86798192,3345.6,3345.4,0.13819997]
[1641461991581,1.86798192,3345.6,3345.2,1.0247]
[1641461991777,1.86798192,3345.6,3344.9,0.01548671]
[1641461991982,0.0073895,3345.7,3343.7,0.356]
[1641461992248,0.0073895,3345.7,3343.4,2.0]
[1641461992249,0.07118739,3345.5,3343.4,2.0]
[1641461992544,0.01252058,3344.9,3343.5,0.00511581]
[1641461992841,0.00227369,3344.8,3343.2,1.29549738]
[1641461993341,0.00170527,3344.7,3343.3,0.00625266]
[1641461993742,0.00113684,3344.6,3344.4,1.245985]
[1641461994143,0.00682108,3345.6,3344.4,1.245985]
[1641461994342,0.00682108,3345.6,3345.0,1.07952033]
[1641461994541,5.8020213,3345.9,3345.0,1.76562033]
[1641461994542,0.00625265,3345.5,3345.0,1.76562033]
[1641461994743,0.00625265,3345.5,3345.1,2.13837679]
[1641461994943,5.8020213,3345.9,3345.1,2.13837679]
[1641461994944,0.00568423,3345.4,3345.1,2.13837679]
[1641461995148,0.00568423,3345.4,3345.0,1.07952033]
[1641461995445,0.00511581,3345.3,3345.0,1.07952033]
[1641461995649,0.00511581,3345.3,3345.0,1.37952033]
[1641461995848,0.00454738,3345.2,3345.0,1.37952033]
[1641461996094,0.00454738,3345.2,3345.1,1.82509346]
[1641461996298,5.8020213,3347.0,3345.6,1.34032398]
[1641461996497,5.8020213,3347.0,3345.7,1.77982672]
[1641461996696,0.01250531,3346.6,3345.7,1.77982672]
[1641461996999,7.25126121,3347.5,3346.2,1.3259179]
[1641461997000,0.01193689,3346.5,3346.2,1.3259179]
[1641461997197,7.25126121,3347.5,3346.2,1.3259179]
[1641461997396,0.01275284,3348.2,3346.3,0.00113685]
[1641461997595,0.00511581,3347.4,3347.1,0.2175]
[1641461997800,0.00511581,3347.4,3347.1,1.3122]
[1641461997995,0.00454739,3347.3,3347.1,1.3122]
[1641461998197,0.00454739,3347.3,3347.1,0.4305]
[1641461998394,0.00397896,3347.2,3347.1,0.4305]
[1641461998694,7.50682108,3347.2,3347.1,0.4305]
[1641461998895,0.00682108,3347.2,3346.3,3.16738852]
[1641461999395,0.00341054,3347.1,3346.9,1.10861335]
[1641461999834,0.00284212,3347.0,3346.9,1.10861335]
[1641462000237,0.00284212,3347.0,3346.8,0.3844]
[1641462000437,0.00284212,3347.0,3346.3,0.00113685]
[1641462000637,0.01201795,3347.4,3346.3,0.00113685]
[1641462000638,0.07346108,3346.9,3346.3,0.00113685]
[1641462000835,0.07346108,3346.9,3345.9,0.00341054]
[1641462001036,0.00170527,3346.8,3345.9,0.00341054]
[1641462001235,0.00170527,3346.8,3346.0,2.25396094]
[1641462001438,0.00113685,3346.7,3346.0,2.25396094]
[1641462001634,0.00113685,3346.7,3346.1,0.00227369]
[1641462001837,0.00397896,3347.2,3346.1,0.00227369]
[1641462002036,0.00397896,3347.2,3346.0,0.00284212]
[1641462002234,0.00341054,3347.1,3346.0,0.00284212]
[1641462002637,0.00284212,3347.0,3346.4,1.14687659]
[1641462002836,0.00284212,3347.0,3345.8,0.00397896]
[1641462003039,0.6917151,3347.8,3345.8,3.38329574]
[1641462003040,0.00227369,3346.9,3345.8,3.38329574]
[1641462003484,0.00170527,3346.8,3345.9,0.00341054]
[1641462003884,0.00113685,3346.7,3346.6,1.14325024]
[1641462004289,0.00113685,3346.7,3346.6,1.08325024]
[1641462004487,0.00113685,3346.7,3346.6,1.38325024]
[1641462005187,0.6917151,3347.8,3346.6,1.38325024]
[1641462005188,0.6917151,3347.8,3346.7,13.5]
[1641462005386,10.10684086,3349.3,3348.7,1.90537288]
[1641462005387,7.26381992,3349.3,3348.7,1.90537288]
[1641462005594,7.26381992,3349.3,3348.7,0.8095]
[1641462006189,0.01255871,3349.3,3348.7,0.8095]
[1641462006388,0.01255871,3349.3,3347.0,3.40986601]
[1641462006589,2.02298475,3348.2,3346.9,3.35025624]
[1641462006788,0.01220198,3348.8,3346.9,3.35025624]
[1641462006990,0.00795792,3348.1,3346.9,3.35025624]
[1641462007247,0.01227026,3347.8,3346.9,5.156e-05]
[1641462007433,0.356,3347.7,3346.9,5.156e-05]
[1641462007634,0.356,3347.7,3346.3,2.81726836]
[1641462007635,0.00568423,3347.7,3347.1,3.37791389]
[1641462007834,0.01227026,3347.8,3347.1,3.37791389]
[1641462007835,0.00511581,3347.6,3347.5,1.78834911]
[1641462008032,0.00511581,3347.6,3347.1,3.37791389]
[1641462008245,0.00511581,3347.6,3347.5,1.13736513]
[1641462008437,5.83364392,3349.5,3347.5,2.09676513]
[1641462008636,5.83364392,3349.5,3348.6,1.09201075]
[1641462008835,0.00909477,3348.3,3347.5,1.49323]
[1641462009037,0.00909477,3348.3,3346.6,4.1989]
[1641462009038,0.00909477,3348.3,3346.6,3.8429]
[1641462009237,2.0154,3350.1,3347.5,3.37791389]
[1641462009238,0.00852635,3348.2,3347.5,3.37791389]
[1641462009635,0.00795792,3348.1,3347.5,3.37791389]
[1641462009938,0.0073895,3348.0,3347.6,1.38583447]
[1641462010335,0.42911748,3350.0,3347.6,1.38583447]
[1641462010336,0.00682108,3347.9,3347.6,1.38583447]
[1641462010536,0.00682108,3347.9,3347.7,1.74998436]
[1641462010742,0.01252026,3349.8,3347.8,0.01288532]
[1641462011202,0.0096632,3349.5,3347.8,0.01288532]
[1641462011403,0.0096632,3349.5,3347.9,3.37791389]
[1641462011603,0.00909478,3349.4,3348.3,2.08639243]
[1641462011903,0.01252026,3349.8,3348.3,2.08639243]
[1641462011904,0.00852636,3349.3,3349.0,1.1838825]
[1641462012316,0.00795793,3349.2,3349.0,1.1838825]
[1641462012513,0.00795793,3349.2,3349.1,0.3]
[1641462012713,0.6917151,3349.9,3349.1,2.98987852]
[1641462012913,0.6917151,3349.9,3349.1,3.25157852]